[Event "FIDE Women World Blitz 2021"]
[Site "Warsaw"]
[Date "2021.12.30"]
[Round "16.11"]
[White "Brambilla, Renee Blandy T."]
[Black "Gil Quilez, Sonia"]
[Result "0-1"]
[ECO "D13"]
[WhiteElo "1651"]
[BlackElo "2122"]
[Annotator "NA"]
[PlyCount "94"]
[EventDate "2021.12.29"]
[EventType "swiss"]
[EventCountry "POL"]
[Tiebreak "Cut1 Buchholz"]
[SourceTitle "playchess.com"]
[Source "ChessBase"]
[SourceQuality "1"]
[TimeControl "180+2"]

1. d4 {[%emt 0:00:01]} d5 {[%emt 0:00:00]} 2. c4 {[%emt 0:00:01]} c6 {[%emt 0:
00:01]} 3. Nc3 {[%emt 0:00:01]} Nf6 {[%emt 0:00:01]} 4. cxd5 {[%emt 0:00:02]}
cxd5 {[%emt 0:00:00]} 5. Nf3 {[%emt 0:00:02]} Nc6 {[%emt 0:00:01]} 6. Bf4 {
[%emt 0:00:04]} a6 {[%emt 0:00:01]} 7. Qc2 {[%emt 0:00:01]} e6 {[%emt 0:00:02]}
8. Bg5 {[%emt 0:00:01]} Be7 {[%emt 0:00:02]} 9. e3 {[%emt 0:00:02]} O-O {
[%emt 0:00:05]} 10. Bd3 {[%emt 0:00:01]} h6 {[%emt 0:00:01]} 11. Bh4 {[%emt 0:
00:01]} Nb4 {[%emt 0:00:01]} 12. Qb1 {[%emt 0:00:08]} Nxd3+ {[%emt 0:00:01]}
13. Qxd3 {[%emt 0:00:02]} b5 {[%emt 0:00:07]} 14. O-O {[%emt 0:00:05]} Bd7 {
[%emt 0:00:02]} 15. Rac1 {[%emt 0:00:01]} b4 {[%emt 0:00:02]} 16. Ne2 {[%emt 0:
00:02]} Bb5 {[%emt 0:00:03]} 17. Qd2 {[%emt 0:00:04]} Ne4 {[%emt 0:00:02]} 18.
Bxe7 {[%emt 0:00:08]} Nxd2 {[%emt 0:00:22]} 19. Bxd8 {[%emt 0:00:05]} Nxf1 {
[%emt 0:00:06]} 20. Kxf1 {[%emt 0:00:28]} Rfxd8 {[%emt 0:00:04]} 21. Ke1 {
[%emt 0:00:02]} Rdc8 {[%emt 0:00:02]} 22. Rc5 {[%emt 0:00:06]} Bxe2 {[%emt 0:
00:21]} 23. Kxe2 {[%emt 0:00:02]} Rxc5 {[%emt 0:00:01]} 24. dxc5 {[%emt 0:00:
01]} Rc8 {[%emt 0:00:00]} 25. Kd3 {[%emt 0:00:11]} Rxc5 {[%emt 0:00:01]} 26.
Nd2 {[%emt 0:00:11]} Kf8 {[%emt 0:00:08]} 27. Nb3 {[%emt 0:00:02]} Rc7 {
[%emt 0:00:04]} 28. Na5 {[%emt 0:00:15]} Ke7 {[%emt 0:00:04]} 29. Nb3 {[%emt 0:
00:06]} Kd6 {[%emt 0:00:02]} 30. Nd4 {[%emt 0:00:03]} g6 {[%emt 0:00:04]} 31.
h3 {[%emt 0:00:02]} e5 {[%emt 0:00:01]} 32. Nb3 {[%emt 0:00:05]} f5 {[%emt 0:
00:04]} 33. g4 {[%emt 0:00:10]} fxg4 {[%emt 0:00:04]} 34. hxg4 {[%emt 0:00:02]}
h5 {[%emt 0:00:02]} 35. gxh5 {[%emt 0:00:08]} gxh5 {[%emt 0:00:01]} 36. Nd2 {
[%emt 0:00:01]} h4 {[%emt 0:00:02]} 37. Nf3 {[%emt 0:00:01]} h3 {[%emt 0:00:01]
} 38. Nh2 {[%emt 0:00:02]} Rg7 {[%emt 0:00:02]} 39. Ke2 {[%emt 0:00:02]} Rg2 {
[%emt 0:00:01]} 40. Kf3 {[%emt 0:00:06]} Rxh2 {[%emt 0:00:02]} 41. Kg3 {
[%emt 0:00:04]} Rg2+ {[%emt 0:00:01]} 42. Kxh3 {[%emt 0:00:02]} Rxf2 {[%emt 0:
00:01]} 43. Kg3 {[%emt 0:00:02]} Rf8 {[%emt 0:00:01]} 44. Kg4 {[%emt 0:00:04]}
e4 {[%emt 0:00:02]} 45. Kg3 {[%emt 0:00:01]} Ke5 {[%emt 0:00:01]} 46. Kg4 {
[%emt 0:00:02]} Rg8+ {[%emt 0:00:01]} 47. Kh3 {[%emt 0:00:05]} d4 {[%emt 0:00:
01]} 0-1

[Event "FIDE Women World Blitz 2021"]
[Site "Warsaw"]
[Date "2021.12.30"]
[Round "16.12"]
[White "Girya, Olga"]
[Black "Bivol, Alina"]
[Result "1-0"]
[ECO "D30"]
[WhiteElo "2402"]
[BlackElo "2377"]
[Annotator "NA"]
[PlyCount "78"]
[EventDate "2021.12.29"]
[EventType "swiss"]
[EventCountry "POL"]
[Tiebreak "Cut1 Buchholz"]
[SourceTitle "playchess.com"]
[Source "ChessBase"]
[SourceQuality "1"]
[TimeControl "180+2"]

1. d4 {[%emt 0:00:01]} d5 {[%emt 0:00:01]} 2. c4 {[%emt 0:00:01]} e6 {[%emt 0:
00:02]} 3. Nf3 {[%emt 0:00:00]} Nf6 {[%emt 0:00:01]} 4. Bg5 {[%emt 0:00:01]}
Be7 {[%emt 0:00:03]} 5. e3 {[%emt 0:00:01]} dxc4 {[%emt 0:00:03]} 6. Bxc4 {
[%emt 0:00:07]} c5 {[%emt 0:00:01]} 7. O-O {[%emt 0:00:14]} Nc6 {[%emt 0:00:01]
} 8. dxc5 {[%emt 0:00:14]} Qa5 {[%emt 0:00:15]} 9. Nc3 {[%emt 0:00:17]} Qxc5 {
[%emt 0:00:05]} 10. Be2 {[%emt 0:00:07]} O-O {[%emt 0:00:02]} 11. Rc1 {[%emt 0:
00:02]} Qa5 {[%emt 0:00:01]} 12. Qb3 {[%emt 0:00:14]} e5 {[%emt 0:00:06]} 13.
Bxf6 {[%emt 0:00:07]} Bxf6 {[%emt 0:00:03]} 14. Nd5 {[%emt 0:00:04]} e4 {
[%emt 0:01:19]} 15. Nxf6+ {[%emt 0:00:02]} gxf6 {[%emt 0:00:01]} 16. Nd4 {
[%emt 0:00:16]} Nxd4 {[%emt 0:00:01]} 17. exd4 {[%emt 0:00:01]} Kh8 {[%emt 0:
00:18]} 18. Rc5 {[%emt 0:00:16]} Qd2 {[%emt 0:00:01]} 19. Qe3 {[%emt 0:00:06]}
Qxe3 {[%emt 0:00:11]} 20. fxe3 {[%emt 0:00:01]} f5 {[%emt 0:00:00]} 21. Rc7 {
[%emt 0:00:10]} b6 {[%emt 0:00:07]} 22. d5 {[%emt 0:00:08]} Kg7 {[%emt 0:00:07]
} 23. Bc4 {[%emt 0:00:11]} Kf6 {[%emt 0:00:03]} 24. Rc6+ {[%emt 0:00:33]} Ke5 {
[%emt 0:00:06]} 25. Rh6 {[%emt 0:00:01]} Bd7 {[%emt 0:00:09]} 26. Rxh7 {
[%emt 0:00:03]} Rac8 {[%emt 0:00:00]} 27. Bb3 {[%emt 0:00:02]} a5 {[%emt 0:00:
01]} 28. a4 {[%emt 0:00:05]} b5 {[%emt 0:00:01]} 29. axb5 {[%emt 0:00:05]} Bxb5
{[%emt 0:00:00]} 30. Ra1 {[%emt 0:00:03]} a4 {[%emt 0:00:11]} 31. Bd1 {[%emt 0:
00:19]} Kxd5 {[%emt 0:00:05]} 32. Rh5 {[%emt 0:00:02]} Bd7 {[%emt 0:00:03]} 33.
Bxa4 {[%emt 0:00:06]} Ra8 {[%emt 0:00:04]} 34. Bb3+ {[%emt 0:00:02]} Ke5 {
[%emt 0:00:01]} 35. Rxa8 {[%emt 0:00:03]} Rxa8 {[%emt 0:00:00]} 36. Bxf7 {
[%emt 0:00:03]} Kf6 {[%emt 0:00:03]} 37. Bc4 {[%emt 0:00:01]} Ra4 {[%emt 0:00:
07]} 38. b3 {[%emt 0:00:01]} Ra2 {[%emt 0:00:01]} 39. h4 {[%emt 0:00:01]} Rd2 {
[%emt 0:00:02]} 1-0

[Event "FIDE Women World Blitz 2021"]
[Site "Warsaw"]
[Date "2021.12.30"]
[Round "16.12"]
[White "Da Silva, Cibele Florencio"]
[Black "Kolaric, Spela"]
[Result "0-1"]
[ECO "C55"]
[WhiteElo "1405"]
[BlackElo "2178"]
[Annotator "NA"]
[PlyCount "66"]
[EventDate "2021.12.29"]
[EventType "swiss"]
[EventCountry "POL"]
[Tiebreak "Cut1 Buchholz"]
[SourceTitle "playchess.com"]
[Source "ChessBase"]
[SourceQuality "1"]
[TimeControl "180+2"]

1. e4 {[%emt 0:00:01]} e5 {[%emt 0:00:01]} 2. Nf3 {[%emt 0:00:02]} Nc6 {
[%emt 0:00:01]} 3. Nc3 {[%emt 0:00:02]} Nf6 {[%emt 0:00:02]} 4. Bc4 {[%emt 0:
00:01]} Nxe4 {[%emt 0:00:02]} 5. Nxe4 {[%emt 0:00:05]} d5 {[%emt 0:00:01]} 6.
Bxd5 {[%emt 0:00:33]} Qxd5 {[%emt 0:00:02]} 7. d3 {[%emt 0:00:14]} Bf5 {
[%emt 0:00:23]} 8. Qe2 {[%emt 0:00:38]} O-O-O {[%emt 0:00:19]} 9. O-O {[%emt 0:
00:08]} Bg4 {[%emt 0:00:33]} 10. c4 {[%emt 0:00:16]} Qxd3 {[%emt 0:00:10]} 11.
Qxd3 {[%emt 0:00:05]} Rxd3 {[%emt 0:00:02]} 12. Be3 {[%emt 0:00:41]} f6 {
[%emt 0:00:29]} 13. Rfd1 {[%emt 0:00:01]} Rxd1+ {[%emt 0:00:01]} 14. Rxd1 {
[%emt 0:00:02]} Be7 {[%emt 0:00:09]} 15. Nc3 {[%emt 0:00:11]} Rd8 {[%emt 0:00:
39]} 16. Rxd8+ {[%emt 0:00:02]} Kxd8 {[%emt 0:00:02]} 17. h3 {[%emt 0:00:01]}
Be6 {[%emt 0:00:03]} 18. Nb5 {[%emt 0:00:05]} Bxc4 {[%emt 0:00:03]} 19. Nxa7 {
[%emt 0:00:03]} Nxa7 {[%emt 0:00:01]} 20. Bxa7 {[%emt 0:00:02]} b6 {[%emt 0:00:
00]} 21. b3 {[%emt 0:00:03]} Bd5 {[%emt 0:00:03]} 22. Nd2 {[%emt 0:00:05]} Kc8
{[%emt 0:00:01]} 23. Nc4 {[%emt 0:00:08]} Bxc4 {[%emt 0:00:02]} 24. bxc4 {
[%emt 0:00:01]} Kb7 {[%emt 0:00:01]} 25. Bxb6 {[%emt 0:00:07]} cxb6 {[%emt 0:
00:02]} 26. Kf1 {[%emt 0:00:02]} Kc6 {[%emt 0:00:02]} 27. Ke2 {[%emt 0:00:01]}
Kc5 {[%emt 0:00:01]} 28. Kd3 {[%emt 0:00:01]} f5 {[%emt 0:00:02]} 29. f3 {
[%emt 0:00:01]} Kb4 {[%emt 0:00:03]} 30. g3 {[%emt 0:00:04]} Bc5 {[%emt 0:00:
04]} 31. g4 {[%emt 0:00:09]} g6 {[%emt 0:00:00]} 32. gxf5 {[%emt 0:00:07]} gxf5
{[%emt 0:00:01]} 33. h4 {[%emt 0:00:03]} h5 {[%emt 0:00:01]} 0-1

[Event "FIDE Women World Blitz 2021"]
[Site "Warsaw"]
[Date "2021.12.30"]
[Round "16.13"]
[White "Salimova, Nurgyul"]
[Black "Padmini, Rout"]
[Result "1-0"]
[ECO "C13"]
[WhiteElo "2353"]
[BlackElo "2353"]
[Annotator "NA"]
[PlyCount "59"]
[EventDate "2021.12.29"]
[EventType "swiss"]
[EventCountry "POL"]
[Tiebreak "Cut1 Buchholz"]
[SourceTitle "playchess.com"]
[Source "ChessBase"]
[SourceQuality "1"]
[TimeControl "180+2"]

1. d4 {[%emt 0:00:02]} Nf6 {[%emt 0:00:01]} 2. Nc3 {[%emt 0:00:02]} e6 {
[%emt 0:00:09]} 3. e4 {[%emt 0:00:12]} d5 {[%emt 0:00:01]} 4. Bg5 {[%emt 0:00:
08]} dxe4 {[%emt 0:00:02]} 5. Nxe4 {[%emt 0:00:03]} Be7 {[%emt 0:00:01]} 6.
Bxf6 {[%emt 0:00:02]} gxf6 {[%emt 0:00:01]} 7. Nf3 {[%emt 0:00:01]} a6 {
[%emt 0:00:05]} 8. g3 {[%emt 0:00:14]} b5 {[%emt 0:00:15]} 9. Bg2 {[%emt 0:00:
04]} Nd7 {[%emt 0:00:04]} 10. O-O {[%emt 0:00:07]} Bb7 {[%emt 0:00:02]} 11. Re1
{[%emt 0:00:17]} c5 {[%emt 0:00:07]} 12. Nc3 {[%emt 0:00:36]} cxd4 {[%emt 0:00:
12]} 13. Qxd4 {[%emt 0:00:03]} Qb6 {[%emt 0:00:09]} 14. Qf4 {[%emt 0:00:27]}
Nc5 {[%emt 0:00:50]} 15. a4 {[%emt 0:00:07]} bxa4 {[%emt 0:00:22]} 16. Nxa4 {
[%emt 0:00:04]} Nxa4 {[%emt 0:00:02]} 17. Qxa4+ {[%emt 0:00:03]} Bc6 {[%emt 0:
00:05]} 18. Qg4 {[%emt 0:00:03]} Kf8 {[%emt 0:00:18]} 19. Qf4 {[%emt 0:00:11]}
h5 {[%emt 0:00:04]} 20. Nh4 {[%emt 0:00:12]} Bxg2 {[%emt 0:00:07]} 21. Nxg2 {
[%emt 0:00:01]} Kg7 {[%emt 0:00:07]} 22. Qf3 {[%emt 0:00:09]} Bd6 {[%emt 0:00:
05]} 23. Rad1 {[%emt 0:00:01]} Be5 {[%emt 0:00:05]} 24. Ne3 {[%emt 0:00:12]}
Rac8 {[%emt 0:00:07]} 25. b3 {[%emt 0:00:02]} Rc3 {[%emt 0:00:11]} 26. Rd7 {
[%emt 0:00:05]} Rc7 {[%emt 0:00:15]} 27. Nc4 {[%emt 0:00:07]} Qc5 {[%emt 0:00:
01]} 28. Nxe5 {[%emt 0:00:07]} fxe5 {[%emt 0:00:02]} 29. Qxf7+ {[%emt 0:00:01]}
Kh6 {[%emt 0:00:02]} 30. Qf6# {[%emt 0:00:02]} 1-0

[Event "FIDE Women World Blitz 2021"]
[Site "Warsaw"]
[Date "2021.12.30"]
[Round "16.14"]
[White "Injac, Teodora"]
[Black "Garifullina, Leya"]
[Result "1/2-1/2"]
[ECO "E09"]
[WhiteElo "2387"]
[BlackElo "2416"]
[Annotator "NA"]
[PlyCount "59"]
[EventDate "2021.12.29"]
[EventType "swiss"]
[EventCountry "POL"]
[Tiebreak "Cut1 Buchholz"]
[SourceTitle "playchess.com"]
[Source "ChessBase"]
[SourceQuality "1"]
[TimeControl "180+2"]

1. d4 {[%emt 0:00:01]} Nf6 {[%emt 0:00:01]} 2. c4 {[%emt 0:00:00]} e6 {[%emt 0:
00:01]} 3. Nf3 {[%emt 0:00:01]} d5 {[%emt 0:00:01]} 4. g3 {[%emt 0:00:02]} Be7
{[%emt 0:00:01]} 5. Bg2 {[%emt 0:00:01]} O-O {[%emt 0:00:01]} 6. Qc2 {[%emt 0:
00:01]} Nbd7 {[%emt 0:00:05]} 7. O-O {[%emt 0:00:03]} c6 {[%emt 0:00:01]} 8.
Nbd2 {[%emt 0:00:02]} b6 {[%emt 0:00:02]} 9. e4 {[%emt 0:00:03]} dxc4 {[%emt 0:
00:01]} 10. Nxc4 {[%emt 0:00:05]} Bb7 {[%emt 0:00:01]} 11. Re1 {[%emt 0:00:41]}
c5 {[%emt 0:00:02]} 12. Bf4 {[%emt 0:00:08]} cxd4 {[%emt 0:00:03]} 13. Nd6 {
[%emt 0:00:16]} Bxd6 {[%emt 0:00:02]} 14. Bxd6 {[%emt 0:00:01]} d3 {[%emt 0:00:
14]} 15. Qxd3 {[%emt 0:00:13]} Bxe4 {[%emt 0:00:01]} 16. Qd4 {[%emt 0:00:13]}
e5 {[%emt 0:00:02]} 17. Nxe5 {[%emt 0:00:12]} Nxe5 {[%emt 0:00:02]} 18. Bxe5 {
[%emt 0:00:07]} Qxd4 {[%emt 0:00:02]} 19. Bxd4 {[%emt 0:00:01]} Bxg2 {[%emt 0:
00:01]} 20. Kxg2 {[%emt 0:00:01]} Nd5 {[%emt 0:00:01]} 21. Rad1 {[%emt 0:00:12]
} Rad8 {[%emt 0:00:01]} 22. a3 {[%emt 0:00:10]} f6 {[%emt 0:00:04]} 23. Kf3 {
[%emt 0:00:03]} Rd7 {[%emt 0:00:04]} 24. Rd2 {[%emt 0:00:26]} Rfd8 {[%emt 0:00:
02]} 25. Red1 Kf7 {[%emt 0:00:01]} 26. h4 {[%emt 0:00:02]} h5 {[%emt 0:00:03]}
27. Be3 {[%emt 0:00:14]} Ke6 {[%emt 0:00:02]} 28. Bd4 {[%emt 0:00:16]} Ne7 {
[%emt 0:00:14]} 29. Bc3 {[%emt 0:00:04]} Nd5 {[%emt 0:00:02]} 30. Bd4 {[%emt 0:
00:01]} 1/2-1/2

[Event "FIDE Women World Blitz 2021"]
[Site "Warsaw"]
[Date "2021.12.30"]
[Round "16.15"]
[White "Kiolbasa, Oliwia"]
[Black "Berend, Elvira"]
[Result "1/2-1/2"]
[ECO "B92"]
[WhiteElo "2403"]
[BlackElo "2328"]
[Annotator "NA"]
[PlyCount "78"]
[EventDate "2021.12.29"]
[EventType "swiss"]
[EventCountry "POL"]
[Tiebreak "Cut1 Buchholz"]
[SourceTitle "playchess.com"]
[Source "ChessBase"]
[SourceQuality "1"]
[TimeControl "180+2"]

1. e4 {[%emt 0:00:01]} c5 {[%emt 0:00:02]} 2. Nf3 {[%emt 0:00:02]} d6 {[%emt 0:
00:02]} 3. d4 {[%emt 0:00:01]} cxd4 {[%emt 0:00:02]} 4. Nxd4 {[%emt 0:00:01]}
Nf6 {[%emt 0:00:01]} 5. Nc3 {[%emt 0:00:02]} a6 {[%emt 0:00:01]} 6. Be2 {
[%emt 0:00:10]} e5 {[%emt 0:00:02]} 7. Nb3 {[%emt 0:00:02]} Be7 {[%emt 0:00:04]
} 8. Bg5 {[%emt 0:00:07]} Be6 {[%emt 0:00:10]} 9. Qd3 {[%emt 0:00:15]} Nbd7 {
[%emt 0:00:03]} 10. O-O-O {[%emt 0:00:12]} Qc7 {[%emt 0:00:05]} 11. Kb1 {
[%emt 0:00:08]} b5 {[%emt 0:00:21]} 12. h4 {[%emt 0:00:10]} b4 {[%emt 0:00:28]}
13. Nd5 {[%emt 0:00:04]} Bxd5 {[%emt 0:00:03]} 14. exd5 {[%emt 0:00:02]} a5 {
[%emt 0:00:03]} 15. Nd2 {[%emt 0:00:18]} O-O {[%emt 0:00:19]} 16. Ne4 {[%emt 0:
00:51]} Nxe4 {[%emt 0:00:20]} 17. Qxe4 {[%emt 0:00:01]} Nc5 {[%emt 0:00:01]}
18. Qg4 {[%emt 0:00:19]} f5 {[%emt 0:00:09]} 19. Qh3 {[%emt 0:00:17]} a4 {
[%emt 0:00:03]} 20. Bd3 {[%emt 0:00:10]} e4 {[%emt 0:00:03]} 21. Bb5 {[%emt 0:
00:09]} b3 {[%emt 0:00:35]} 22. cxb3 {[%emt 0:00:09]} axb3 {[%emt 0:00:02]} 23.
a3 {[%emt 0:00:01]} Rf7 {[%emt 0:00:20]} 24. Rc1 {[%emt 0:00:05]} Rb8 {[%emt 0:
00:02]} 25. Bc4 {[%emt 0:00:02]} Qa5 {[%emt 0:00:04]} 26. Qc3 {[%emt 0:00:04]}
Qb6 {[%emt 0:00:06]} 27. Be3 {[%emt 0:00:04]} Bf6 {[%emt 0:00:02]} 28. Bd4 {
[%emt 0:00:01]} Na4 {[%emt 0:00:09]} 29. Bxb6 {[%emt 0:00:05]} Nxc3+ 30. bxc3 {
[%emt 0:00:01]} Rxb6 {[%emt 0:00:03]} 31. Kb2 {[%emt 0:00:01]} Rc7 {[%emt 0:00:
01]} 32. Be2 {[%emt 0:00:05]} Rc5 {[%emt 0:00:05]} 33. Rhd1 {[%emt 0:00:02]}
Be5 {[%emt 0:00:01]} 34. a4 {[%emt 0:00:01]} Rb8 {[%emt 0:00:02]} 35. Bb5 {
[%emt 0:00:02]} Bf4 {[%emt 0:00:04]} 36. Rb1 {[%emt 0:00:02]} Be5 {[%emt 0:00:
00]} 37. Rbc1 {[%emt 0:00:04]} Bf4 {[%emt 0:00:01]} 38. Rb1 {[%emt 0:00:01]}
Be5 {[%emt 0:00:01]} 39. Rbc1 {[%emt 0:00:02]} Bf4 {[%emt 0:00:00]} 1/2-1/2

[Event "FIDE Women World Blitz 2021"]
[Site "Warsaw"]
[Date "2021.12.30"]
[Round "16.16"]
[White "Mamedjarova, Turkan"]
[Black "Maltsevskaya, Aleksandra"]
[Result "1-0"]
[ECO "E61"]
[WhiteElo "2264"]
[BlackElo "2411"]
[Annotator "NA"]
[PlyCount "83"]
[EventDate "2021.12.29"]
[EventType "swiss"]
[EventCountry "POL"]
[Tiebreak "Cut1 Buchholz"]
[SourceTitle "playchess.com"]
[Source "ChessBase"]
[SourceQuality "1"]
[TimeControl "180+2"]

1. d4 {[%emt 0:00:02]} Nf6 {[%emt 0:00:01]} 2. c4 {[%emt 0:00:01]} g6 {[%emt 0:
00:01]} 3. Nc3 {[%emt 0:00:01]} Bg7 {[%emt 0:00:00]} 4. Bg5 {[%emt 0:00:01]}
O-O {[%emt 0:00:02]} 5. e3 {[%emt 0:00:01]} d6 {[%emt 0:00:02]} 6. Nf3 {
[%emt 0:00:02]} c6 {[%emt 0:00:01]} 7. Bd3 {[%emt 0:00:10]} a6 {[%emt 0:00:01]}
8. O-O {[%emt 0:00:04]} b5 {[%emt 0:00:01]} 9. a3 {[%emt 0:00:08]} Nbd7 {
[%emt 0:00:07]} 10. Rc1 {[%emt 0:00:10]} Bb7 {[%emt 0:00:03]} 11. e4 {[%emt 0:
00:02]} e5 {[%emt 0:00:15]} 12. dxe5 {[%emt 0:00:09]} dxe5 {[%emt 0:00:01]} 13.
Qe2 {[%emt 0:00:03]} Nc5 {[%emt 0:00:07]} 14. Bc2 {[%emt 0:00:12]} Ne6 {
[%emt 0:00:02]} 15. Be3 {[%emt 0:00:15]} Nd4 {[%emt 0:00:35]} 16. Bxd4 {
[%emt 0:00:07]} exd4 {[%emt 0:00:01]} 17. Rcd1 {[%emt 0:00:02]} c5 {[%emt 0:00:
01]} 18. cxb5 {[%emt 0:00:12]} axb5 {[%emt 0:00:01]} 19. Nxb5 {[%emt 0:00:01]}
Re8 {[%emt 0:00:01]} 20. Nd2 {[%emt 0:00:09]} Qb6 {[%emt 0:00:05]} 21. a4 {
[%emt 0:00:05]} Qc6 {[%emt 0:00:09]} 22. f3 {[%emt 0:00:04]} Nh5 {[%emt 0:00:
14]} 23. Qc4 {[%emt 0:00:15]} Qf6 {[%emt 0:00:30]} 24. Nc7 {[%emt 0:00:12]} Qg5
{[%emt 0:00:07]} 25. Nxa8 {[%emt 0:00:09]} Be5 {[%emt 0:00:16]} 26. Rf2 {
[%emt 0:00:15]} Rxa8 {[%emt 0:00:09]} 27. Bb3 {[%emt 0:00:03]} Rf8 {[%emt 0:00:
00]} 28. Nf1 {[%emt 0:00:06]} Kg7 {[%emt 0:00:12]} 29. a5 {[%emt 0:00:02]} Bc8
{[%emt 0:00:04]} 30. a6 {[%emt 0:00:04]} Be6 {[%emt 0:00:01]} 31. Qc2 {[%emt 0:
00:06]} d3 {[%emt 0:00:40]} 32. Rxd3 {[%emt 0:00:21]} Nf4 {[%emt 0:00:08]} 33.
Bxe6 {[%emt 0:00:01]} Nh3+ {[%emt 0:00:05]} 34. Bxh3 {[%emt 0:00:01]} Ra8 {
[%emt 0:00:02]} 35. g3 {[%emt 0:00:08]} Qf6 {[%emt 0:00:03]} 36. Qc4 {[%emt 0:
00:07]} Bxb2 {[%emt 0:00:03]} 37. Rxb2 {[%emt 0:00:04]} Qxb2 {[%emt 0:00:01]}
38. Rd7 {[%emt 0:00:02]} Kh6 {[%emt 0:00:02]} 39. Qxf7 {[%emt 0:00:02]} Rh8 {
[%emt 0:00:01]} 40. Qf4+ {[%emt 0:00:01]} g5 {[%emt 0:00:03]} 41. Qd6+ {
[%emt 0:00:01]} Kh5 {[%emt 0:00:02]} 42. Bg4# {[%emt 0:00:00]} 1-0

[Event "FIDE Women World Blitz 2021"]
[Site "Warsaw"]
[Date "2021.12.30"]
[Round "16.17"]
[White "Batsiashvili, Nino"]
[Black "Osmak, Yuliia"]
[Result "0-1"]
[ECO "A96"]
[WhiteElo "2491"]
[BlackElo "2198"]
[Annotator "ChessBase"]
[PlyCount "140"]
[EventDate "2021.12.29"]
[EventType "swiss"]
[EventCountry "POL"]
[Tiebreak "Cut1 Buchholz"]
[SourceTitle "playchess.com"]
[Source "ChessBase"]
[SourceQuality "1"]
[TimeControl "180+2"]

1. c4 {[%emt 0:00:01]} e6 {[%emt 0:00:03]} 2. Nf3 {[%emt 0:00:02]} f5 {[%emt 0:
00:06]} 3. g3 {[%emt 0:00:02]} Nf6 {[%emt 0:00:02]} 4. Bg2 {[%emt 0:00:00]} Be7
{[%emt 0:00:03]} 5. O-O {[%emt 0:00:03]} O-O {[%emt 0:00:07]} 6. Nc3 {[%emt 0:
00:07]} d6 {[%emt 0:00:02]} 7. d4 {[%emt 0:00:06]} Nc6 {[%emt 0:00:09]} 8. Rb1
{[%emt 0:00:10]} e5 {[%emt 0:00:05]} 9. d5 {[%emt 0:00:05]} Nb8 {[%emt 0:00:04]
} 10. b4 {[%emt 0:00:02]} a5 {[%emt 0:00:16]} 11. a3 {[%emt 0:00:00]} axb4 {
[%emt 0:00:03]} 12. axb4 {[%emt 0:00:02]} Qe8 {[%emt 0:00:23]} 13. Qb3 {
[%emt 0:00:16]} h6 {[%emt 0:00:25]} 14. c5 {[%emt 0:00:05]} Kh7 {[%emt 0:00:04]
} 15. cxd6 {[%emt 0:00:09]} cxd6 {[%emt 0:00:02]} 16. Bd2 {[%emt 0:00:26]} Na6
{[%emt 0:00:26]} 17. Rfc1 {[%emt 0:00:06]} Bd7 {[%emt 0:00:02]} 18. Be3 {
[%emt 0:00:17]} Qh5 {[%emt 0:00:02]} 19. b5 {[%emt 0:00:04]} Nc7 {[%emt 0:00:
08]} 20. Bb6 {[%emt 0:00:04]} Nce8 {[%emt 0:00:08]} 21. Ra1 {[%emt 0:00:12]}
Rc8 {[%emt 0:00:07]} 22. Ra7 {[%emt 0:00:08]} Rb8 {[%emt 0:00:14]} 23. Na4 {
[%emt 0:00:06]} f4 {[%emt 0:00:13]} 24. Bc7 {[%emt 0:00:06]} Nxc7 {[%emt 0:00:
13]} 25. Rxc7 {[%emt 0:00:01]} Rfc8 {[%emt 0:00:05]} 26. b6 {[%emt 0:00:00]}
Bd8 {[%emt 0:00:10]} 27. Rxc8 {[%emt 0:00:30]} Rxc8 {[%emt 0:00:01]} 28. Nc3 {
[%emt 0:00:04]} e4 {[%emt 0:00:02]} 29. Nd4 {[%emt 0:00:04]} e3 {[%emt 0:00:04]
} 30. fxe3 {[%emt 0:00:06]} fxg3 {[%emt 0:00:00]} 31. hxg3 {[%emt 0:00:01]} Ng4
{[%emt 0:00:01]} 32. Nf3 {[%emt 0:00:03]} Bf6 {[%emt 0:00:02]} 33. Qb1+ {
[%emt 0:00:05]} Bf5 {[%emt 0:00:03]} 34. e4 {[%emt 0:00:00]} Bg6 {[%emt 0:00:
02]} 35. Nd1 {[%emt 0:00:04]} Re8 {[%emt 0:00:05]} 36. Ra4 {[%emt 0:00:01]} Ne5
{[%emt 0:00:04]} 37. Nf2 {[%emt 0:00:02]} Nxf3+ {[%emt 0:00:03]} 38. exf3 {
[%emt 0:00:03]} Qg5 {[%emt 0:00:03]} 39. Kh2 {[%emt 0:00:09]} Be5 {[%emt 0:00:
01]} 40. f4 {[%emt 0:00:01]} Qh5+ {[%emt 0:00:02]} 41. Kg1 {[%emt 0:00:03]} Bf6
{[%emt 0:00:02]} 42. Rc4 {[%emt 0:00:06]} Qe2 {[%emt 0:00:02]} 43. Qf1 {
[%emt 0:00:03]} Qb2 {[%emt 0:00:02]} 44. Ng4 {[%emt 0:00:12]} Bd4+ {[%emt 0:00:
02]} 45. Kh1 {[%emt 0:00:02]} Bxb6 {[%emt 0:00:01]} 46. f5 {[%emt 0:00:02]} Bh5
{[%emt 0:00:02]} 47. Nh2 {[%emt 0:00:06]} Bc5 {[%emt 0:00:01]} 48. g4 {[%emt 0:
00:03]} Bf7 {[%emt 0:00:02]} 49. Qf4 {[%emt 0:00:02]} Qa1+ {[%emt 0:00:03]} 50.
Nf1 {[%emt 0:00:02]} Qf6 {[%emt 0:00:02]} 51. Rc2 {[%emt 0:00:02]} b5 {[%emt 0:
00:02]} 52. Ra2 {[%emt 0:00:01]} b4 {[%emt 0:00:01]} 53. Qf3 {[%emt 0:00:02]}
Rb8 {[%emt 0:00:02]} 54. Nd2 {[%emt 0:00:04]} Qh4+ {[%emt 0:00:02]} 55. Bh3 {
[%emt 0:00:03]} Qe1+ {[%emt 0:00:00]} 56. Nf1 {[%emt 0:00:01]} Qb1 {[%emt 0:00:
00]} 57. Re2 {[%emt 0:00:02]} Bd4 {[%emt 0:00:00]} 58. g5 {[%emt 0:00:01]} hxg5
{[%emt 0:00:00]} 59. Bg4 {[%emt 0:00:00]} Rh8 {[%emt 0:00:00]} 60. Rh2+ {
[%emt 0:00:07]} Kg8 {[%emt 0:00:00]} 61. Rxh8+ {[%emt 0:00:01]} Kxh8 {[%emt 0:
00:00]} 62. f6 {[%emt 0:00:02]} gxf6 {[%emt 0:00:04]} 63. Bf5 {[%emt 0:00:02]}
Kg7 {[%emt 0:00:03]} 64. Qh3 {[%emt 0:00:01]} Kf8 {[%emt 0:00:01]} 65. Kg2 {
[%emt 0:00:04]} Ke7 {[%emt 0:00:02]} 66. Ng3 {[%emt 0:00:03]} Qc2+ {[%emt 0:00:
02]} 67. Kf3 {[%emt 0:00:02]} Qd1+ {[%emt 0:00:01]} 68. Kg2 {[%emt 0:00:01]}
Qd2+ {[%emt 0:00:02]} 69. Kf3 {[%emt 0:00:02]} Qf2+ {[%emt 0:00:01]} 70. Kg4 {
[%emt 0:00:02]} Qf4# {[%emt 0:00:01]} 0-1

[Event "FIDE Women World Blitz 2021"]
[Site "Warsaw"]
[Date "2021.12.30"]
[Round "16.18"]
[White "Kovanova, Baira"]
[Black "Kamalidenova, Meruert"]
[Result "1-0"]
[ECO "B90"]
[WhiteElo "2331"]
[BlackElo "2339"]
[Annotator "NA"]
[PlyCount "38"]
[EventDate "2021.12.29"]
[EventType "swiss"]
[EventCountry "POL"]
[Tiebreak "Cut1 Buchholz"]
[SourceTitle "playchess.com"]
[Source "ChessBase"]
[SourceQuality "1"]
[TimeControl "180+2"]

1. e4 {[%emt 0:00:01]} c5 {[%emt 0:00:01]} 2. Nf3 {[%emt 0:00:01]} d6 {[%emt 0:
00:00]} 3. d4 {[%emt 0:00:00]} cxd4 4. Nxd4 {[%emt 0:00:01]} Nf6 {[%emt 0:00:
02]} 5. Nc3 {[%emt 0:00:01]} a6 {[%emt 0:00:01]} 6. Be3 {[%emt 0:00:02]} e5 {
[%emt 0:00:03]} 7. Nf3 {[%emt 0:00:01]} Be6 {[%emt 0:00:07]} 8. Ng5 {[%emt 0:
00:16]} d5 {[%emt 0:00:20]} 9. exd5 {[%emt 0:00:29]} Bf5 {[%emt 0:00:24]} 10.
Bc4 {[%emt 0:00:09]} Bb4 {[%emt 0:00:26]} 11. O-O {[%emt 0:00:16]} O-O {
[%emt 0:00:02]} 12. Qe2 {[%emt 0:00:10]} Bxc3 {[%emt 0:00:28]} 13. bxc3 {
[%emt 0:00:02]} Nxd5 {[%emt 0:00:06]} 14. Qf3 {[%emt 0:00:25]} Be6 {[%emt 0:00:
07]} 15. Rad1 {[%emt 0:00:10]} e4 {[%emt 0:00:11]} 16. Qxe4 {[%emt 0:00:39]}
Nf6 {[%emt 0:00:03]} 17. Qxb7 {[%emt 0:00:12]} Bxc4 {[%emt 0:00:13]} 18. Rxd8 {
[%emt 0:00:04]} Rxd8 {[%emt 0:00:01]} 19. Qxa8 {[%emt 0:00:03]} Bxf1 {[%emt 0:
00:02]} 1-0